fUST/lending_fUST_20251207
["ID","MTS","AMOUNT","RATE_DAILY","PERIOD"]
[396683817,1765092838102,500.0,4.61e-05,2]
[396683818,1765092838220,-373.65647307,5.319e-05,2]
[396683819,1765092840830,-388.1672447,5.319e-05,2]
[396683820,1765092842311,300.0,5.318e-05,2]
[396683821,1765092842399,-300.0,5.319e-05,2]
[396683822,1765092845563,-275.1898445,5.319e-05,2]
[396683823,1765092846175,500.0,4.61e-05,2]
[396683824,1765092847793,-299.93263803,5.319e-05,2]
[396683825,1765092849367,-220.93230947,5.319e-05,2]
[396683826,1765092851610,-173.64931978,5.319e-05,2]
[396683827,1765092854431,-196.62439236,5.319e-05,2]
[396683828,1765092855722,-432.49917161,5.319e-05,2]
[396683829,1765092859740,-383.40567253,5.319e-05,2]
[396683830,1765092863078,-234.38064113,5.319e-05,2]
[396683831,1765092864595,-382.04868251,5.319e-05,2]
[396683832,1765092866095,-228.47536908,5.319e-05,2]
[396683833,1765092868380,-206.07956658,5.319e-05,2]
[396683834,1765092872169,1089.05379532,5.318e-05,2]
[396683835,1765092872319,-214.25074878,5.319e-05,2]
[396683836,1765092872385,1089.05379532,5.318e-05,2]
[396683837,1765092872526,1089.05379532,5.318e-05,2]
[396683838,1765092872809,1089.05379532,5.318e-05,2]
[396683839,1765092873082,1089.05379532,5.318e-05,2]
[396683840,1765092873151,1089.05379532,5.318e-05,2]
[396683841,1765092873301,1089.05379532,5.318e-05,2]
[396683842,1765092873390,118.71219168,5.318e-05,2]
[396683843,1765092873435,970.34160364,5.318e-05,2]
[396683844,1765092873528,1089.05379532,5.318e-05,2]
[396683845,1765092873630,1089.05379532,5.318e-05,2]
[396683846,1765092873696,1089.05379532,5.318e-05,2]
[396683847,1765092873836,1089.05379532,5.318e-05,2]
[396683848,1765092874061,1089.05379532,5.318e-05,2]
[396683849,1765092875514,-175.6907337,5.319e-05,2]
[396683850,1765092880061,171.36845217,5.318e-05,2]
[396683851,1765092882773,2225.22047192,5.318e-05,2]
[396683852,1765092882857,1187.81049567,5.318e-05,2]
[396683853,1765092882915,1037.40997625,5.318e-05,2]
[396683854,1765092882996,2225.22047192,5.318e-05,2]
[396683855,1765092883548,2225.22047192,5.318e-05,2]
[396683856,1765092883642,2225.22047192,5.318e-05,2]
[396683857,1765092883759,2225.22047192,5.318e-05,2]
[396683858,1765092883857,61.71813607,5.318e-05,2]
[396683859,1765092883907,2163.50233585,5.318e-05,2]
[396683860,1765092884121,2225.22047192,5.318e-05,2]
[396683861,1765092884191,2225.22047192,5.318e-05,2]
[396683862,1765092900625,1802.653352,5.318e-05,2]
[396683863,1765092900710,1583.41336831,5.318e-05,2]
[396683864,1765092900759,219.23998369,5.318e-05,2]
[396683865,1765092900996,1802.653352,5.318e-05,2]
[396683866,1765092901074,1802.653352,5.318e-05,2]
[396683867,1765092901154,1802.653352,5.318e-05,2]
[396683868,1765092901225,1802.653352,5.318e-05,2]
[396683869,1765092901279,1802.653352,5.318e-05,2]
[396683870,1765092901376,767.50325631,5.318e-05,2]
[396683871,1765092901424,1035.15009569,5.318e-05,2]
[396683872,1765092901601,1802.653352,5.318e-05,2]
[396683873,1765092902652,300.0,5.318e-05,2]
[396683874,1765092915810,-300.0,5.318e-05,2]
[396683875,1765092915861,-300.0,5.318e-05,2]
[396683876,1765092915913,-1200.0,5.318e-05,2]
[396683877,1765092915964,-500.0,5.319e-05,2]
[396683878,1765092916020,-500.0,5.319e-05,2]
[396683879,1765092916076,-500.0,5.319e-05,2]
[396683880,1765092916131,-500.0,5.319e-05,2]
[396683881,1765092940190,-500.0,5.318e-05,2]
[396683882,1765092940252,-500.0,5.318e-05,2]
[396683883,1765092940311,-500.0,5.318e-05,2]
[396683884,1765092940378,-1452.1729896,5.318e-05,2]
[396683885,1765092940433,-500.0,5.318e-05,2]
[396683886,1765092940489,-500.0,5.318e-05,2]
[396683887,1765092940546,-643.4910312,5.318e-05,2]
[396683888,1765092954369,-808.6819584,5.318e-05,2]
[396683889,1765092954425,-500.0,5.318e-05,2]
[396683890,1765092954478,-346.90780916,5.318e-05,2]
[396683891,1765092954533,-500.0,5.318e-05,2]
[396683892,1765092954595,-1452.1729896,5.318e-05,2]
[396683893,1765092954651,-500.0,5.318e-05,2]
[396683894,1765092954706,-325.71840785,5.318e-05,2]
[396683895,1765092955276,-1452.1729896,5.318e-05,2]
[396683896,1765092955332,-500.0,5.318e-05,2]
[396683897,1765092955385,-500.0,5.318e-05,2]
[396683898,1765092955438,-500.0,5.318e-05,2]
[396683899,1765092955493,-500.0,5.318e-05,2]
[396683900,1765092955548,-1452.1729896,5.318e-05,2]
[396683901,1765092956008,-1452.1729896,5.318e-05,2]
[396683902,1765092956071,-2096.01173063,5.318e-05,2]
[396683903,1765092956131,-807.62882891,5.318e-05,2]
[396683904,1765092956195,-1288.38290172,5.318e-05,2]
[396683905,1765092956258,-500.0,5.318e-05,2]
[396683906,1765092956310,-500.0,5.318e-05,2]
[396683907,1765092956366,-500.0,5.318e-05,2]
[396683908,1765092956422,-442.48191781,5.318e-05,2]
[396683909,1765092956474,-500.0,5.318e-05,2]
[396683910,1765092956531,-500.0,5.318e-05,2]
[396683911,1765092956582,-500.0,5.318e-05,2]
[396683912,1765092956635,-154.38061806,5.318e-05,2]
[396683913,1765092956968,-253.39905116,5.319e-05,2]
[396683914,1765092957020,-2230.315306,5.319e-05,2]
[396683915,1765092966252,-300.0,5.318e-05,2]
[396683916,1765092966300,-300.0,5.318e-05,2]
[396683917,1765092975166,-3700.59507081,5.319e-05,2]
[396683918,1765092975274,-10000.01,5.319e-05,2]
[396683919,1765092975417,-10000.01,5.319e-05,2]
[396683920,1765092975560,-10000.01,5.319e-05,2]
[396683921,1765092976087,-10000.01,5.319e-05,2]
[396683922,1765092976167,-10000.01,5.319e-05,2]
[396683923,1765092982702,-10000.01,5.219e-05,2]
[396683924,1765092982738,-10000.01,5.219e-05,2]
[396683925,1765093060852,-756.93244496,5.218e-05,2]
[396683926,1765093060905,-756.93244496,5.218e-05,2]
[396683927,1765093060959,-756.93244496,5.218e-05,2]
[396683928,1765093061013,-756.93244496,5.218e-05,2]
[396683929,1765093061072,-756.93244496,5.218e-05,2]
[396683930,1765093061129,-756.93244496,5.218e-05,2]
[396683931,1765093061185,-159.88821552,5.218e-05,2]
[396683932,1765093061487,-597.04422944,5.218e-05,2]
[396683933,1765093068355,-756.93244496,5.218e-05,2]
[396683934,1765093068414,-756.93244496,5.218e-05,2]
[396683935,1765093068470,-756.93244496,5.218e-05,2]
[396683936,1765093068524,-756.93244496,5.218e-05,2]
[396683937,1765093068579,-756.93244496,5.218e-05,2]
[396683938,1765093068635,-756.93244496,5.218e-05,2]
[396683939,1765093068693,-159.88821552,5.218e-05,2]
[396683940,1765093069054,-597.04422944,5.218e-05,2]
[396683943,1765093579902,-1200.0,5.214e-05,2]
[396683944,1765093579960,-300.0,5.214e-05,2]
[396683945,1765093592319,500.0,5.214e-05,2]
[396683946,1765093592520,500.0,5.214e-05,2]
[396683947,1765093593218,500.0,5.214e-05,2]
[396683948,1765093593591,500.0,5.214e-05,2]
[396683949,1765093593717,500.0,5.214e-05,2]
[396683950,1765093593855,500.0,5.214e-05,2]
[396683951,1765093593979,500.0,5.214e-05,2]
[396683952,1765093594077,500.0,5.214e-05,2]
[396683953,1765093594276,500.0,5.214e-05,2]
[396683954,1765093594820,500.0,5.214e-05,2]
[396683955,1765093594925,500.0,5.214e-05,2]
[396683956,1765093595001,500.0,5.214e-05,2]
[396683957,1765093600444,500.0,5.214e-05,2]
[396683958,1765093600554,500.0,5.214e-05,2]
[396683959,1765093600631,500.0,5.214e-05,2]
[396683960,1765093600821,500.0,5.214e-05,2]
[396683961,1765093600907,500.0,5.214e-05,2]
[396683962,1765093600989,532.40106057,5.214e-05,2]
[396683963,1765093601061,500.0,5.214e-05,2]
[396683964,1765093601213,500.0,5.214e-05,2]
[396683965,1765093601278,500.0,5.214e-05,2]
[396683966,1765093601360,500.0,5.214e-05,2]
[396683967,1765093601457,500.0,5.214e-05,2]
[396683968,1765093601541,500.0,5.214e-05,2]
[396683969,1765093604101,361.77768754,5.214e-05,2]
[396683970,1765093605636,500.0,5.214e-05,2]
[396683971,1765093605721,500.0,5.214e-05,2]
[396683972,1765093605783,413.08570494,5.214e-05,2]
[396683973,1765093611195,500.0,5.214e-05,2]
[396683974,1765093611257,318.46281951,5.214e-05,2]
[396683975,1765093611320,1374.28272744,5.214e-05,2]
[396683976,1765093611376,388.33961962,5.214e-05,2]
[396683977,1765093611458,500.0,5.214e-05,2]
[396683978,1765093611518,1762.62234706,5.214e-05,2]
[396683979,1765093611573,500.0,5.214e-05,2]
[396683980,1765093611645,1762.62234706,5.214e-05,2]
[396683981,1765093611716,500.0,5.214e-05,2]
[396683982,1765093611779,1762.62234706,5.214e-05,2]
[396683983,1765093611837,500.0,5.214e-05,2]
[396683984,1765093611912,1762.62234706,5.214e-05,2]
[396683985,1765093611969,500.0,5.214e-05,2]
[396683986,1765093612042,61.18099214,5.214e-05,2]
[396683987,1765093612097,1701.44135492,5.214e-05,2]
[396683988,1765093612480,1762.62234706,5.214e-05,2]
[396683989,1765093612578,1762.62234706,5.214e-05,2]
[396683990,1765093613277,1762.62234706,5.214e-05,2]
[396683991,1765093614715,-1200.0,5.215e-05,2]
[396683992,1765093614774,-300.0,5.215e-05,2]
[396683993,1765093625425,500.0,5.214e-05,2]
[396683994,1765093625487,500.0,5.214e-05,2]
[396683995,1765093625551,500.0,5.214e-05,2]
[396683996,1765093625604,581.39414459,5.214e-05,2]
[396683997,1765093627827,189.9607007,4.347e-05,2]
[396683998,1765093629059,1499.53602428,5.214e-05,2]
[396683999,1765093629124,1499.53602428,5.214e-05,2]
[396684000,1765093629244,1499.53602428,5.214e-05,2]
[396684001,1765093629415,230.04708187,5.214e-05,2]
[396684002,1765093629472,1269.48894241,5.214e-05,2]
[396684003,1765093629551,1499.53602428,5.214e-05,2]
[396684004,1765093629622,1499.53602428,5.214e-05,2]
[396684005,1765093629733,1499.53602428,5.214e-05,2]
[396684006,1765093629943,1499.53602428,5.214e-05,2]
[396684007,1765093630201,1499.53602428,5.214e-05,2]
[396684008,1765093630946,1499.53602428,5.214e-05,2]
[396684009,1765093631699,-151.35407933,5.216e-05,2]
[396684010,1765093633194,-151.06190433,5.216e-05,2]
[396684011,1765093636970,-176.24101114,5.216e-05,2]
[396684012,1765093639658,-151.99883395,5.216e-05,2]
[396684013,1765093642133,-353.75255448,5.216e-05,2]
[396684014,1765093643963,-296.72483493,5.216e-05,2]
[396684015,1765093646048,-413.49271773,5.216e-05,2]
[396684016,1765093646884,1025.68264061,5.214e-05,2]
[396684017,1765093646980,1025.68264061,5.214e-05,2]
[396684018,1765093647041,1025.68264061,5.214e-05,2]
[396684019,1765093647446,1025.68264061,5.214e-05,2]
[396684020,1765093647512,1025.68264061,5.214e-05,2]
[396684021,1765093647629,-535.68937011,5.216e-05,2]
[396684022,1765093647685,-549.03006812,5.216e-05,2]
[396684023,1765093647737,-300.0,5.218e-05,2]
[396684024,1765093648021,1025.68264061,5.214e-05,2]
[396684025,1765093648304,1025.68264061,5.214e-05,2]
[396684026,1765093648376,1025.68264061,5.214e-05,2]
[396684027,1765093649231,-169.63592332,5.219e-05,2]
[396684028,1765093649511,-8769.12651447,5.219e-05,2]
[396684029,1765093649604,-10000.01,5.219e-05,2]
[396684031,1765093650826,-191.77186993,5.219e-05,2]
[396684032,1765093656112,-10000.01,5.219e-05,2]
[396684033,1765093656433,-10000.01,5.219e-05,2]
[396684034,1765093656665,-10000.01,5.219e-05,2]
[396684035,1765093656834,-10000.01,5.219e-05,2]
[396684036,1765093657018,-10000.01,5.219e-05,2]
[396684037,1765093664921,-248.75728919,4.51e-05,2]
[396684038,1765093680007,-155.48290866,4.51e-05,2]
[396684039,1765093681613,-95.75980215,4.51e-05,2]
[396684040,1765093681637,-204.24019785,4.51e-05,2]
[396684041,1765093683607,-295.75980215,4.51e-05,2]
[396684042,1765093683630,-266.67439883,4.51e-05,2]
[396684043,1765093685866,-179.2736605,4.51e-05,2]
[396684044,1765093689301,-54.05194067,4.51e-05,2]
[396684045,1765093689329,-232.42573788,4.51e-05,2]
[396684046,1765093709435,-252.04362725,4.51e-05,2]
[396684047,1765093710926,-15.53063487,4.51e-05,2]
[396684048,1765093710949,-201.05123687,4.51e-05,2]
[396684049,1765093713878,-285.11274756,4.51e-05,2]
[396684050,1765093715226,-13.83601557,4.51e-05,2]
[396684051,1765093715249,-295.3662114,4.51e-05,2]
[396684052,1765093716731,-204.6337886,4.51e-05,2]
[396684053,1765093716754,-217.53848544,4.51e-05,2]
[396684054,1765093718944,-282.46151456,4.51e-05,2]
[396684055,1765093718967,-79.42195899,4.51e-05,2]
[396684056,1765093721059,-241.23703564,4.51e-05,2]
[396684057,1765093769524,-179.34100537,4.51e-05,2]
[396684058,1765093769546,-131.71014394,4.62e-05,2]
[396684059,1765093829580,-215.10551669,4.445e-05,2]
[396684078,1765093832335,-9534.63765401,4.445e-05,2]
[396684080,1765093832345,-118.28985606,4.62e-05,2]
[396684082,1765093832354,-1096.9421823,5.218e-05,2]
[396684087,1765093832389,-103.0578177,5.218e-05,2]
[396684089,1765093832399,-300.0,5.218e-05,2]
[396684090,1765093832409,-300.0,5.218e-05,2]
[396684094,1765093832422,-1200.0,5.218e-05,2]
[396684097,1765093832431,-43.14736381,5.219e-05,2]
[396684194,1765093838562,-6127.6942753,5.219e-05,2]
[396684196,1765093838574,-1865.47717774,5.219e-05,2]
[396684499,1765093841768,-3e-08,5.219e-05,2]
[396684541,1765093842151,-416.35171708,5.219e-05,2]
[396684546,1765093842186,-92388.0,5.219e-05,2]
[396684806,1765093844592,-3.80279633,5.219e-05,2]
[396684989,1765093846533,-342.55454446,5.219e-05,2]
[396684992,1765093846546,-2464.73851065,5.219e-05,2]
[396684997,1765093846588,-281.53730516,5.219e-05,2]
[396686477,1765093861517,333.33333333,0.000211,99]
[396689998,1765094069465,-381.75371519,4.267e-05,2]
[396689999,1765094160563,-123.61616751,4.267e-05,2]
[396690000,1765094190052,-182.04172186,5.109e-05,2]
[396690001,1765094194272,-246.82715909,5.109e-05,2]
[396690002,1765094196443,-121.60780937,5.109e-05,2]
[396690003,1765094196474,-206.24418184,5.117e-05,2]
[396690004,1765094199539,-174.27929332,5.117e-05,2]
[396690005,1765094200916,-119.47652484,5.117e-05,2]
[396690006,1765094200946,-66.27322891,5.117e-05,2]
[396690007,1765094207227,-285.62627834,5.117e-05,2]
[396690008,1765094210681,-148.10049275,5.117e-05,2]
[396690009,1765094210718,-135.63360716,5.117e-05,2]
[396690010,1765094213518,-364.36639284,5.117e-05,2]
[396690011,1765094213551,-215.22290777,5.117e-05,2]
[396690012,1765094216274,-284.77709223,5.117e-05,2]
[396690013,1765094216306,-15.22290777,5.117e-05,2]
[396690021,1765094218286,-155.67299573,5.117e-05,2]
[396690025,1765094220907,-329.1040965,5.117e-05,2]
[396690026,1765094220942,-305.87958325,5.117e-05,2]
[396690027,1765094222366,300.0,5.116e-05,2]
[396690028,1765094222401,-194.12041675,5.117e-05,2]
[396690029,1765094222432,-27.56779365,5.117e-05,2]
[396690030,1765094226318,-188.12795238,5.117e-05,2]
[396690031,1765094227947,-231.14574503,5.117e-05,2]
[396690032,1765094230213,-53.15850894,5.117e-05,2]
[396690033,1765094230244,-270.88781243,5.117e-05,2]
[396690034,1765094232368,-192.97650903,5.117e-05,2]
[396690035,1765094235538,-36.13567854,5.117e-05,2]
[396690036,1765094235570,-204.29992213,5.117e-05,2]
[396690037,1765094238635,-274.75222852,5.117e-05,2]
[396690038,1765094240240,-20.94784935,5.117e-05,2]
[396690039,1765094240264,-235.93203711,5.117e-05,2]
[396690040,1765094241881,-154.99,5.117e-05,2]
[396690041,1765094244036,-31.0251283,5.117e-05,2]
[396690042,1765094244065,-468.9748717,5.117e-05,2]
[396690043,1765094246754,-31.0251283,5.117e-05,2]
[396690044,1765094246804,-252.03217876,5.117e-05,2]
[396690045,1765094248498,-247.96782124,5.117e-05,2]
[396690046,1765094248545,-40.40310224,5.117e-05,2]
[396690047,1765094251985,-329.42693693,5.117e-05,2]
[396690048,1765094254340,-18.64415908,5.117e-05,2]
[396690049,1765094254393,-500.0,5.117e-05,2]
[396690050,1765094254444,-212.70034002,5.117e-05,2]
[396690051,1765094255902,-180.15903718,5.117e-05,2]
[396690052,1765094257478,-107.1406228,5.117e-05,2]
[396690053,1765094257525,-168.13510331,5.117e-05,2]
[396690054,1765094259629,-170.93,5.117e-05,2]
[396690055,1765094262392,-219.73287126,5.117e-05,2]
[396690056,1765094264109,-26.75112194,5.117e-05,2]
[396690057,1765094264161,-426.47833192,5.117e-05,2]
[396690058,1765094268896,-94.46002529,5.117e-05,2]
[396690059,1765094268951,-373.7220677,5.117e-05,2]
[396690060,1765094271113,-275.72310828,5.117e-05,2]
[396690061,1765094273454,-210.60091953,5.117e-05,2]
[396690062,1765094277948,-172.32017929,5.117e-05,2]
[396690063,1765094278571,1200.0,5.116e-05,2]
[396690065,1765094283109,300.0,5.116e-05,2]
[396690066,1765094312208,500.0,5.116e-05,2]
[396690067,1765094312380,500.0,5.116e-05,2]
[396690068,1765094312971,500.0,5.116e-05,2]
[396690069,1765094313129,403.22514644,5.116e-05,2]
[396690070,1765094313510,500.0,5.116e-05,2]
[396690071,1765094313587,500.0,5.116e-05,2]
[396690072,1765094313832,176.17212183,5.116e-05,2]
[396690073,1765094320160,325.6914786,5.116e-05,2]
[396690074,1765094328911,1582.57659598,5.116e-05,2]
[396690075,1765094329027,1582.57659598,5.116e-05,2]
[396690076,1765094329131,1582.57659598,5.116e-05,2]
[396690077,1765094329226,47.19146519,5.116e-05,2]
[396690078,1765094329291,1535.38513079,5.116e-05,2]
[396690079,1765094329514,1582.57659598,5.116e-05,2]
[396690080,1765094329652,1582.57659598,5.116e-05,2]
[396690081,1765094329781,1582.57659598,5.116e-05,2]
[396690082,1765094330603,1582.57659598,5.116e-05,2]
[396690083,1765094346902,1359.29408782,5.116e-05,2]
[396690084,1765094347375,1359.29408782,5.116e-05,2]
[396690085,1765094347507,1359.29408782,5.116e-05,2]
[396690086,1765094347673,1359.29408782,5.116e-05,2]
[396690087,1765094347974,1359.29408782,5.116e-05,2]
[396690088,1765094348203,1359.29408782,5.116e-05,2]
[396690089,1765094348494,261.6688771,5.116e-05,2]
[396690090,1765094348576,1097.62521072,5.116e-05,2]
[396690091,1765094364502,1168.27749758,5.116e-05,2]
[396690092,1765094364711,1168.27749758,5.116e-05,2]
[396690093,1765094364912,1168.27749758,5.116e-05,2]
[396690094,1765094365018,1168.27749758,5.116e-05,2]
[396690095,1765094365270,1168.27749758,5.116e-05,2]
[396690096,1765094382366,973.56458131,5.116e-05,2]
[396690097,1765094382801,973.56458131,5.116e-05,2]
[396690098,1765094383147,973.56458131,5.116e-05,2]
[396690099,1765094400259,140.30355745,5.116e-05,2]
[396690100,1765094400346,658.59208427,5.116e-05,2]
[396690101,1765094400447,798.89564172,5.116e-05,2]
[396690102,1765094414206,2230.315306,5.117e-05,2]
[396690103,1765094453996,6312.20696801,4.243e-05,2]
[396690104,1765094454046,10000.01,4.243e-05,2]
[396690105,1765094454090,10000.01,4.243e-05,2]
[396690106,1765094454136,10000.01,4.243e-05,2]
[396690107,1765094454181,10000.01,4.243e-05,2]
[396690108,1765094454229,7263.01455149,4.243e-05,2]
[396690109,1765094551735,200.0,0.00017072,120]
[396690110,1765094551994,776.00787156,5.117e-05,2]
[396690111,1765094552390,776.00787156,5.117e-05,2]
[396690112,1765094552515,776.00787156,5.117e-05,2]
[396690113,1765094552638,408.97183383,5.117e-05,2]
[396690114,1765094552713,367.03603773,5.117e-05,2]
[396690115,1765094552827,776.00787156,5.117e-05,2]
[396690116,1765094553375,776.00787156,5.117e-05,2]
[396690117,1765094553724,776.00787156,5.117e-05,2]
[396690118,1765094553838,776.00787156,5.117e-05,2]
[396690119,1765094554073,776.00787156,5.117e-05,2]
[396690120,1765094554579,776.00787156,5.117e-05,2]
[396690121,1765094568805,1007.87810219,5.117e-05,2]
[396690122,1765094568883,1007.87810219,5.117e-05,2]
[396690123,1765094568968,1007.87810219,5.117e-05,2]
[396690124,1765094569080,1007.87810219,5.117e-05,2]
[396690125,1765094569263,945.41432415,5.117e-05,2]
[396690126,1765094569340,62.46377804,5.117e-05,2]
[396690127,1765094569500,1007.87810219,5.117e-05,2]
[396690128,1765094569664,1007.87810219,5.117e-05,2]
[396690129,1765094569751,1007.87810219,5.117e-05,2]
[396690130,1765094569890,1007.87810219,5.117e-05,2]
[396690131,1765094570376,1007.87810219,5.117e-05,2]
[396690132,1765094570735,1007.87810219,5.117e-05,2]
[396690134,1765094586870,821.23400919,5.117e-05,2]
[396690135,1765094586970,821.23400919,5.117e-05,2]
[396690136,1765094587069,821.23400919,5.117e-05,2]
[396690137,1765094587190,821.23400919,5.117e-05,2]
[396690138,1765094587385,605.34157206,5.117e-05,2]
[396690139,1765094587460,215.89243713,5.117e-05,2]
[396690140,1765094587620,821.23400919,5.117e-05,2]
[396690141,1765094588069,821.23400919,5.117e-05,2]
[396690142,1765094598957,-539.46715651,5.117e-05,2]
[396690143,1765094599009,-300.0,5.118e-05,2]
[396690144,1765094599064,-1200.0,5.118e-05,2]
[396690145,1765094599123,-1200.0,5.118e-05,2]
[396690146,1765094599173,-300.0,5.118e-05,2]
[396690147,1765094608138,690.06468828,5.117e-05,2]
[396690148,1765094608317,690.06468828,5.117e-05,2]
[396690149,1765094608706,690.06468828,5.117e-05,2]
[396690150,1765094608879,690.06468828,5.117e-05,2]
[396690151,1765094618260,160.81693386,5.117e-05,2]
[396690152,1765094618337,456.79096215,5.117e-05,2]
[396690153,1765094618564,617.60789601,5.117e-05,2]
[396690154,1765094618761,617.60789601,5.117e-05,2]
[396690155,1765094618892,617.60789601,5.117e-05,2]
[396690156,1765094619478,617.60789601,5.117e-05,2]
[396690157,1765094636529,500.0,5.117e-05,2]
[396690158,1765094636694,500.0,5.117e-05,2]
[396690159,1765094636845,538.10605682,5.117e-05,2]
[396690160,1765094637359,500.0,5.117e-05,2]
[396690161,1765094642400,300.0,5.118e-05,2]
[396690162,1765094678185,500.0,5.118e-05,2]
[396690163,1765094678601,500.0,5.118e-05,2]
[396690164,1765094678878,500.0,5.118e-05,2]
[396690165,1765094679126,500.0,5.118e-05,2]
[396690166,1765094679236,500.0,5.118e-05,2]
[396690167,1765094679384,500.0,5.118e-05,2]
[396690168,1765094679788,500.0,5.118e-05,2]
[396690169,1765094680102,500.0,5.118e-05,2]
[396690173,1765094695110,672.17716917,5.118e-05,2]
[396690174,1765094695458,62.50422782,5.118e-05,2]
[396690175,1765094695527,609.67294135,5.118e-05,2]
[396690176,1765094695656,672.17716917,5.118e-05,2]
[396690177,1765094695773,672.17716917,5.118e-05,2]
[396690178,1765094695906,672.17716917,5.118e-05,2]
[396690179,1765094702509,300.0,5.118e-05,2]
[396690180,1765094708741,1200.0,5.118e-05,2]
[396690181,1765094712991,642.76941802,5.118e-05,2]
[396690182,1765094713093,642.76941802,5.118e-05,2]
[396690183,1765094713151,833.71885419,5.119e-05,2]
[396690184,1765094713359,642.76941802,5.118e-05,2]
[396690185,1765094713462,642.76941802,5.118e-05,2]
[396690186,1765094713575,642.76941802,5.118e-05,2]
[396690187,1765094714017,642.76941802,5.118e-05,2]
[396690188,1765094714209,642.76941802,5.118e-05,2]
[396690189,1765094743944,-534.08295279,5.118e-05,2]
[396690190,1765094744038,-534.08295279,5.118e-05,2]
[396690191,1765094744126,-534.08295279,5.118e-05,2]
[396690192,1765094744215,-534.08295279,5.118e-05,2]
[396690193,1765094744305,-534.08295279,5.118e-05,2]
[396690194,1765094758800,-4137.34018169,5.119e-05,2]
[396690195,1765094764947,-300.0,5.118e-05,2]
[396690196,1765094765412,500.0,5.118e-05,2]
[396690197,1765094765592,413.74951911,5.118e-05,2]
[396690198,1765094765706,500.0,5.118e-05,2]
[396690199,1765094765944,500.0,5.118e-05,2]
[396690200,1765094766091,500.0,5.118e-05,2]
[396690201,1765094766353,500.0,5.118e-05,2]
[396690202,1765094822477,300.0,5.118e-05,2]
[396690203,1765094867346,6186.26048089,5.117e-05,2]
[396690204,1765094867392,10000.01,5.117e-05,2]
[396690205,1765094867447,10000.01,5.117e-05,2]
[396690206,1765094867494,10000.01,5.117e-05,2]
[396690207,1765094867540,10000.01,5.117e-05,2]
[396690208,1765094867587,10000.01,5.117e-05,2]
[396690209,1765094867634,10000.01,5.117e-05,2]
[396690210,1765094867682,9252.49200111,5.117e-05,2]
[396690211,1765094878530,232.0,5.118e-05,2]
[396690212,1765094894978,-300.0,5.118e-05,2]
[396690213,1765094910961,200.0,0.00017463,120]
[396690214,1765094919753,11710.60690736,0.000211,99]
[396690215,1765094942423,300.0,5.118e-05,2]
[396690216,1765094976808,503.69112211,5.118e-05,2]
[396690217,1765094976895,503.69112211,5.118e-05,2]
[396690218,1765094977011,503.69112211,5.118e-05,2]
[396690219,1765094977209,503.69112211,5.118e-05,2]
[396690220,1765094977296,503.69112211,5.118e-05,2]
[396690221,1765094977394,503.69112211,5.118e-05,2]
[396690222,1765094977616,503.69112211,5.118e-05,2]
[396690223,1765094977882,503.69112211,5.118e-05,2]
[396690224,1765094978037,503.69112211,5.118e-05,2]
[396690225,1765094978889,503.69112211,5.118e-05,2]
[396690226,1765094979362,503.69112211,5.118e-05,2]
[396690227,1765094987103,3559.40765679,5.019e-05,2]
[396690228,1765094987156,10000.01,5.019e-05,2]
[396690229,1765094987205,10000.01,5.019e-05,2]
[396690230,1765094987256,10000.01,5.019e-05,2]
[396690231,1765094987305,10000.01,5.019e-05,2]
[396690232,1765094987354,10000.01,5.019e-05,2]
[396690233,1765094987402,10000.01,5.019e-05,2]
[396690234,1765094987454,10000.01,5.019e-05,2]
[396690235,1765094987508,10000.01,5.019e-05,2]
[396690236,1765095028434,-300.0,5.018e-05,2]
[396690237,1765095028740,-1200.0,5.018e-05,2]
[396690268,1765095032538,-4648.25,5.019e-05,2]
[396690273,1765095032576,-708.02923581,5.019e-05,2]
[396690350,1765095038878,-42099.30051969,5.019e-05,2]
[396690351,1765095038890,-8581.03043972,5.019e-05,2]
[396690352,1765095039017,-6949.5994298,5.019e-05,2]
[396690353,1765095039028,-1069.39056157,5.019e-05,2]
[396690592,1765095041515,-3e-08,5.019e-05,2]
[396690594,1765095041526,-9242.42809648,5.019e-05,2]
[396690894,1765095044454,-5407.08774892,5.019e-05,2]
[396691169,1765095047168,-982.374,5.019e-05,2]
[396691186,1765095047317,7000.01,4.378e-05,2]
[396691192,1765095047362,3371.2134965,4.378e-05,2]
[396692577,1765095062366,300.0,5.018e-05,2]
[396694096,1765095078537,726.515,0.00015,30]
[396695194,1765095122333,300.0,5.018e-05,2]
[396695195,1765095142218,500.0,5.018e-05,2]
[396695196,1765095142277,500.0,5.018e-05,2]